Cogmind - Beta 14 @@@ ROGUE MODE // 2025.03.31 @ 21:00:02 Player: TheHatedCTAT Result: Destroyed by as-18321 with Assembled Blade Performance ------------- Evolutions (0) 0 Regions Visited (2) 400 Robots Destroyed (27) 135 Value Destroyed (666) 666 Prototype IDs (0) 0 Alien Tech Used (0) 0 Bonus (0) 0 TOTAL SCORE: 1201 Bonus ------- None Cogmind --------- Core Integrity 0/250 Matter 300/300 Energy 100/100 System Corruption 0% Temperature Cool (21) Movement Rolling (110) Ox2 Location -10/Mines Parts ------- > --- POWER (1) -------- (None) > --- PROPULSION (2) --- Light Treads Wheel > --- UTILITY (2) ------ Large Storage Unit > --- WEAPON (2) ------- Beam Cannon Light Assault Rifle > --- INVENTORY (15) --- Improved Ion Engine Medium Matter Pod (27) Signal Interpreter Improved Terrain Scanner Salvage Targeting Computer Medium Armor Plating Medium Armor Plating Medium Armor Plating Medium Armor Plating Hacking Suite Beam Cannon Light Cannon Rocket Launcher Datajack Mining Laser Peak State ------------ > --- POWER ------------ Improved Ion Engine > --- PROPULSION ------- Light Treads Light Treads > --- UTILITY ---------- Large Storage Unit Sensor Array > --- WEAPON ----------- Beam Cannon Light Assault Rifle > --- INVENTORY -------- Improved Ion Engine Wheel Seismic Detector Salvage Targeting Computer Medium Armor Plating Medium Armor Plating Medium Armor Plating Medium Armor Plating Hacking Suite Light Cannon Rocket Launcher Mining Laser [Rating: 10] Favorites ----------- Power Improved Ion Engine Engine Improved Ion Engine Propulsion Light Treads Treads Light Treads Leg Aluminum Leg Wheel Wheel Utility Seismic Detector Device Seismic Detector Storage Large Storage Unit Weapon Beam Cannon Energy Gun Medium Laser Energy Cannon Beam Cannon Ballistic Gun Light Assault Rifle Launcher Rocket Launcher Special Weapon Mining Laser Build | -11 -10 -10 ------- Run | Yrd Mat Min Slots Evolved . | . . . Power . | . . . Propulsion . | . . . Utility . | . . . Weapon . | . . . Parts Attached 32 | 7 17 8 Power 2 | 1 1 . Engine 2 | 1 1 . Core . | . . . Reactor . | . . . Propulsion 7 | 2 1 4 Treads 4 | 2 1 1 Leg 1 | . . 1 Wheel 2 | . . 2 Hover . | . . . Flight . | . . . Utility 4 | 2 2 . Device 2 | 1 1 . Storage 2 | 1 1 . Processor . | . . . Hackware . | . . . Protection . | . . . Artifact . | . . . Weapon 19 | 2 13 4 Energy Gun 6 | 2 4 . Energy Cannon 4 | . 2 2 Ballistic Gun 3 | . 2 1 Ballistic Cannon . | . . . Launcher 1 | . . 1 Special Weapon 5 | . 5 . Impact Weapon . | . . . Slashing Weapon . | . . . Piercing Weapon . | . . . Special Melee Weapon . | . . . Unidentified Prototypes . | . . . Parts Lost 3 | . . 3 Power 1 | . . 1 Propulsion 1 | . . 1 Utility 1 | . . 1 Weapon . | . . . Highest Loss Streak 2 | . . 2 To Critical Strikes . | . . . Average Slot Usage (%) 98 | . 99 93 Engine 14 | . 14 14 Treads 26 | . 27 22 Device 13 | . 14 11 Storage 14 | . 14 14 Energy Gun 10 | . 13 . Energy Cannon 11 | . 7 24 Ballistic Gun 5 | . 6 2 Peak Build Rating 10 | 7 10 10 Average Rating 8 | 5 8 9 On Entrance 5 | . 7 10 Naked Turns . | . . . Heaviest Build 34 | 14 34 34 Greatest Support 40 | 40 40 40 Greatest Overweight (x) 3 | . . 3 Average Overweight (x) . | . . . Largest Inventory Capacity 15 | 8 15 15 Average Capacity 11 | 7 11 15 Most Carried 15 | 6 15 15 Average Carried 9 | 3 9 14 Final Capacity 15 | 8 15 15 Final Carried 15 | 6 15 15 Class Distribution -------------------- 100% | Mutant Dominant Class ---------------- Mutant | -10/Materials Mutant | -10/Mines Resources | -11 -10 -10 ----------- Run | Yrd Mat Min Matter Collected 560 | 206 235 119 Remotely . | . . . Salvage Created 864 | 78 653 133 Parts 56 | 8 41 7 Haulers Intercepted . | . . . Recyclers Shooed 2 | . . 2 Parts Field Recycled . | . . . Retrieved Matter . | . . . Parts Self-Destructed . | . . . Prevented . | . . . Kills | -11 -10 -10 ------- Run | Yrd Mat Min Combat Hostiles Destroyed 19 | . 13 6 Guns 8 | . 8 . Cannons 9 | . 5 4 AOE 2 | . . 2 Classes Destroyed 9 | 1 6 2 Worker 1 | . 1 . Builder 1 | . 1 . Tunneler 3 | 3 . . Operator 3 | . 3 . Watcher 3 | . 3 . Swarmer 3 | . 3 . Grunt 12 | . 10 2 Demolisher 1 | . . 1 Assembled 3 | . . 3 Best Kill Streak 4 | 2 3 4 Combat Bots Only 4 | . 3 4 Max Kills in Single Turn 2 | 1 1 2 Gunslinging . | . . . Exploded 2 | . . 2 Melee . | . . . Uniques/NPCs Destroyed . | . . . Combat | -11 -10 -10 -------- Run | Yrd Mat Min Hostile Shots Fired 101 | . 59 42 Missed 29 | . 14 15 Damage Taken 1144 | . 521 623 Core 278 | . 85 193 Absorbed by Shields . | . . . Regen/Repaired (Parts) 121 | . 121 . Core Remaining (%) 100 | 100 . . Volleys Fired 96 | 5 70 21 Largest 2 | 2 2 2 Hottest 120 | 90 110 120 Shots Fired 170 | 10 125 35 Gun 115 | 10 96 9 Cannon 48 | . 23 25 Launcher 1 | . . 1 Special 6 | . 6 . Kinetic 40 | . 31 9 Thermal 129 | 10 94 25 Explosive 1 | . . 1 Electromagnetic . | . . . Robot Hit Streak 12 | 2 12 5 Robot Miss Streak 3 | 1 3 3 Penetration Max . | . . . Secondary Targets . | . . . Shots Hit Robots 98 | 5 71 22 Core Hits 52 | 3 35 14 Critical Kills . | . . . Critical Parts Destroyed . | . . . Critical Strikes 2 | . 2 . Burn 2 | . 2 . Melee Attacks . | . . . Impact . | . . . Slashing . | . . . Piercing . | . . . Sneak Attacks . | . . . Combat Hostiles . | . . . Follow-up Attacks . | . . . Damage Inflicted 1415 | 59 917 439 Guns 734 | 59 619 56 Cannons 579 | . 298 281 Explosions 102 | . . 102 Melee . | . . . Ramming . | . . . Kinetic 200 | . 144 56 Thermal 1113 | 59 773 281 Explosive 102 | . . 102 Electromagnetic . | . . . Impact . | . . . Slashing . | . . . Piercing . | . . . Highest Corruption . | . . . Average Corruption . | . . . Corruption Purged . | . . . Corruption Blocked . | . . . Overload Shots . | . . . Overflow Damage 7 | . . 7 Projectiles 7 | . . 7 Explosions . | . . . Melee . | . . . Knockbacks . | . . . Impact . | . . . Kinetic . | . . . Secondary . | . . . Self-Inflicted Damage 32 | . . 32 Shots 1 | . . 1 Rammed . | . . . Targets Rammed . | . . . Kicked . | . . . Crushed . | . . . Highest Temperature 354 | 60 261 354 Average Temperature 94 | 28 73 176 Received Heat Transfer 351 | . 252 99 Effects 2 | . . 2 Energy Bleed 1 | . . 1 Short Circuit 1 | . . 1 Siege Activations . | . . . Robots Corrupted . | . . . Combat Hostiles . | . . . Parts Fried . | . . . Impact Corruptions . | . . . Robots Melted . | . . . Combat Hostiles . | . . . Parts Melted 5 | . 4 1 Heat Transferred 2806 | 161 2053 592 Parts Sabotaged . | . . . Parts Stolen . | . . . Parts Stripped . | . . . Power Chain Reactions . | . . . Alert | -11 -10 -10 ------- Run | Yrd Mat Min Peak Influence 162 | 15 162 113 Initial 38 | . 9 38 Average 56 | 5 59 59 Maximum Alert Level . | . . . Low Security (%) 100 | 100 100 100 Level 1 . | . . . Level 2 . | . . . Level 3 . | . . . Level 4 . | . . . Level 5 . | . . . High Security . | . . . Max Security . | . . . Squads Dispatched 3 | . 3 . Investigation . | . . . Extermination . | . . . Reinforcement 3 | . 3 . Assault . | . . . Garrison . | . . . Intercept . | . . . Searches Triggered . | . . . Construction Impeded . | . . . Haulers Reinforced . | . . . Active Scanning Responses . | . . . Cargo Convoy Interrupts . | . . . Stealth | -11 -10 -10 --------- Run | Yrd Mat Min Distress Signals 1 | . 1 . Communications Jammed . | . . . Distress Signals . | . . . Times Spotted 47 | . 28 19 Peak Tracking Total 11 | . 3 11 Tactical Retreats . | . . . Traps | -11 -10 -10 ------- Run | Yrd Mat Min Traps Triggered . | . . . Indirectly . | . . . Trap Hack Attempts . | . . . Triggered . | . . . Disarmed . | . . . Reprogrammed . | . . . Reused . | . . . Traps Extracted . | . . . Installed . | . . . Triggered . | . . . Machines | -11 -10 -10 ---------- Run | Yrd Mat Min Machines Disabled . | . . . Max in Single Turn . | . . . Machines Repaired . | . . . Machines Dismantled . | . . . Machines Sabotaged . | . . . Overloaded Fab Kills . | . . . Hacking | -11 -10 -10 --------- Run | Yrd Mat Min Machines Accessed 7 | . 7 . Terminals 4 | . 4 . Fabricators . | . . . Repair Stations 1 | . 1 . Recycling Units 2 | . 2 . Scanalyzers . | . . . Garrison Access . | . . . Total Hacks 19 | . 19 . Successful 7 | . 7 . Failed 12 | . 12 . Catastrophic 3 | . 3 . Database Lockouts . | . . . Manual 11 | . 11 . Terminals 11 | . 11 . Fabricators . | . . . Repair Stations 2 | . 2 . Recycling Units 6 | . 6 . Scanalyzers . | . . . Garrison Access . | . . . Terminal Hacks 3 | . 3 . Branch Access Points 2 | . 2 . Terminal Index 1 | . 1 . Fabricator Hacks . | . . . Repair Station Hacks 2 | . 2 . Scan Component 1 | . 1 . Repair 1 | . 1 . Recycling Unit Hacks 2 | . 2 . Retrieve Components 2 | . 2 . Scanalyzer . | . . . Garrison Access Hacks . | . . . Unauthorized Hacks . | . . . Terminals . | . . . Fabricators . | . . . Repair Stations . | . . . Recycling Units . | . . . Scanalyzers . | . . . Garrison Access . | . . . Data Cores Recovered . | . . . Used . | . . . Hacking Detections 5 | . 5 . Full Trace Events . | . . . Feedback Events . | . . . Feedback Blocked . | . . . Robot Schematics Acquired . | . . . Robots Built . | . . . Authchips . | . . . Time . | . . . Total Robot Build Rating . | . . . Part Schematics Acquired . | . . . Parts Built . | . . . Authchips . | . . . Time . | . . . Total Part Build Rating . | . . . Parts Repaired 1 | . 1 . Time 26 | . 26 . Parts Recycled . | . . . Recycled Matter . | . . . Retrieved Matter . | . . . Retrieved Components 19 | . 19 . Parts Scanalyzed . | . . . Part Schematics Acquired . | . . . Parts Damaged . | . . . Bothacking | -11 -10 -10 ------------ Run | Yrd Mat Min Used RIF Installer . | . . . Robots Hacked . | . . . Non-combat . | . . . Combat . | . . . Robot Hacks Applied . | . . . Relay Couplers Released . | . . . Fabnet Peak Effective % . | . . . Robots Rewired . | . . . Allies Hacked . | . . . Hacks Repelled . | . . . Allies | -11 -10 -10 -------- Run | Yrd Mat Min Total Allies . | . . . Largest Group . | . . . Highest-Rated Group . | . . . Highest-Rated Ally . | . . . Total Orders . | . . . Ally Attacks . | . . . Total Damage . | . . . Kills . | . . . Allies Corrupted . | . . . Allies Melted . | . . . Intel | -11 -10 -10 ------- Run | Yrd Mat Min Robot Analysis Total . | . . . Derelict Logs Recovered 1 | . . 1 Drone Launches . | . . . Drone Recoveries . | . . . Exploration | -11 -10 -10 ------------- Run | Yrd Mat Min Turns Passed 2623 | 130 2026 467 Spaces Moved 1243 | 62 957 224 Core 1 | 1 . . Treads 1233 | 61 957 215 Legs . | . . . Wheels 9 | . . 9 Hover . | . . . Flight . | . . . Fastest Speed 50 | 50 160 125 Average Speed 161 | 158 160 169 Slowest Speed 240 | 160 160 240 Overloaded Moves . | . . . Propulsion Burnouts . | . . . Robots Hopped . | . . . Cave-ins Triggered . | . . . Exploration Rate (%) 48 | 5 99 41 Regions Visited 2 Branch Regions 1 Pre-discovered Areas 1 | . . 1 Known Exits Taken 1 | . 1 . Unknown Exits Taken 1 | 1 . . Scrap Searched . | . . . Spaces Dug 6 | . 6 . Terrain Destroyed 8 | . 6 2 Melee . | . . . Projectile 6 | . 6 . AOE 2 | . . 2 Terrain Rammed . | . . . Walls Destroyed . | . . . Machines Disabled . | . . . Actions | -11 -10 -10 --------- Run | Yrd Mat Min Total 1678 | 81 1319 278 Wait 272 | . 253 19 Move 1241 | 61 956 224 Hop . | . . . Pick Up 22 | 7 13 2 Fast Attach 13 | 7 4 2 Attach 3 | . 1 2 Detach 2 | . 1 1 Swap 16 | . 12 4 Drop 13 | 1 9 3 Fire 96 | 5 70 21 Melee . | . . . Ram . | . . . Kick . | . . . Crush . | . . . Escape Stasis . | . . . Rewire . | . . . Trap . | . . . Miscellaneous . | . . . Route ------- -11/Scrapyard -10/Materials (discovered 4 exits: [*Mat x3] / *Min) -10/Mines (discovered 1 exit: [*Mat]) History --------- Turn | Location | Event 11 | -11/Scrapyard | Discovered new exit (range 15) 131 | -11/Scrapyard | Entered Materials 307 | -10/Materials | Build established: Mutant 511 | -10/Materials | Discovered new exit (range 16) 537 | -10/Materials | Identified exit to Mines 1024 | -10/Materials | Repaired Lgt. Treads 1136 | -10/Materials | Discovered new exit (range 13) 1490 | -10/Materials | Discovered new exit (range 7) 2157 | -10/Materials | Entered Mines 2258 | -10/Mines | Discovered new exit (range 5) 2430 | -10/Mines | Learned location of Zion (-6) 2476 | -10/Mines | Assembled infested the area 2481 | -10/Mines | Assisted by a Guerilla fighting off Assembled 2502 | -10/Mines | Core integrity fell below 50% 2518 | -10/Mines | Core integrity fell below 20% 2624 | -10/Mines | Destroyed by as-18321 with Assembled Blade Last Messages --------------- 02602_ U-05 Engineer builds a Wall. 02602_ K-01 Serf collects debris. 02603_ The unstable cave ceiling collapses. 02603_ U-05 Engineer lays Concrete. 02607_ U-05 Engineer builds a Wall. 02607_ Acquired 9 matter. 02607_ K-01 Serf collects debris. 02607_ U-05 Engineer lays Concrete. 02610_ K-01 Serf collects debris. 02610_ U-05 Engineer builds a Wall. 02610_ U-05 Engineer lays Concrete. 02610_ R-06 Scavenger collects Tractor Beam. 02614_ K-01 Serf collects debris. 02614_ R-06 Scavenger collects Sml. Laser. 02619_ Dropped Aluminum Leg. 02619_ Acquired Wheel. 02621_ Extracted 77 matter. 02622_ Acquired Med. Matter Pod. 02624_ K-01 Serf collects debris. 02624_ Imp. Ion Engine destroyed. Map ----- +----------------------------------------------------+ | ?????????????????????????????????????????????? | | ?????????????????????????????????????????????? | | ?????????????????????????????????????????????? | | ?????????????????????????????????????????????? | | ?????????????????????????????????????????????? | | ?????????????????????????????????????????????? | | ?????????????????????????????????????????????? | | ?????????????????????????????????????????????? | | ?????????????????????????????????????????????? | | ?????????????????????????????????????????????? | | ?????????????????????????????????????????????? | | ?????????????????????????????????????????????? | | ?????????????????????????????????????????????? | | ?????????????????????????????????????????????? | | ??????????????????????????????# ????????????? | | ?????????????????????????????#a